Workbook

Sheet baseclient
C1: Base CLIENT
C4: Code Client | D4: Societe2 | E4: Site | F4: Civilité | G4: Nom | H4: Prenom | I4: Service | J4: Adresse | K4: Code postal | L4: Ville | M4: Téléphone | N4: Mode de règlement | O4: Colonne9 | P4: CP VILLE
C5: C100001 | D5: Société1 | E5: Site1 | F5: Mr | G5: Nom1 | H5: Prenom1 | I5: Service soumission | J5: adresse1 | K5: 25500 | L5: MORTEAU | M5: 101010101 | N5: VIREMENT BANCAIRE 30 jours FIN DE MOIS | P5: =baseclient[[#This Row],[Code postal]]&" "&baseclient[[#This Row],[Ville]] -> 25500 MORTEAU
C6: C100002 | D6: Société2 | E6: Site1 | F6: Mme | G6: Nom2 | H6: Prenom2 | I6: Service soumission | J6: adresse225 | K6: 25000 | L6: BESANCON | M6: 202020202 | N6: VIREMENT BANCAIRE 30 jours FIN DE MOIS | P6: =baseclient[[#This Row],[Code postal]]&" "&baseclient[[#This Row],[Ville]] -> 25000 BESANCON
C7: C100002 | D7: Société2 | E7: Site2 | F7: Mme | G7: Nom4 | H7: Prenom4 | I7: Service Achat | J7: adresse225 | K7: 25000 | L7: BESANCON | M7: 202020202 | N7: VIREMENT BANCAIRE 30 jours FIN DE MOIS | P7: =baseclient[[#This Row],[Code postal]]&" "&baseclient[[#This Row],[Ville]] -> 25000 BESANCON
C8: C100002 | D8: Société2 | E8: Site2 | F8: Mr | G8: Nom3 | H8: Prenom3 | I8: Service comptabilité | J8: adresse3 | K8: 25000 | L8: BESANCON | M8: 303030303 | N8: VIREMENT BANCAIRE 30 jours FIN DE MOIS | P8: =baseclient[[#This Row],[Code postal]]&" "&baseclient[[#This Row],[Ville]] -> 25000 BESANCON
C9: C100002 | D9: Société2 | E9: Site3 | F9: Mr | G9: Nom3 | H9: Prenom4 | I9: Service achat | J9: adresse4 | K9: 75000 | L9: PARIS | M9: 404040404 | N9: VIREMENT BANCAIRE 30 jours FIN DE MOIS | P9: =baseclient[[#This Row],[Code postal]]&" "&baseclient[[#This Row],[Ville]] -> 75000 PARIS
C10: C100002 | D10: Société2 | E10: Site4 | F10: Mr | G10: Nom2 | H10: Prenom2 | I10: Service achat | J10: adresse2 | K10: 25000 | L10: BESANCON | M10: 505050505 | N10: VIREMENT BANCAIRE 30 jours FIN DE MOIS | P10: =baseclient[[#This Row],[Code postal]]&" "&baseclient[[#This Row],[Ville]] -> 25000 BESANCON

Sheet ARCDE
I1: Accusé de réception de commande
H2: N° | I2: AR44032
G4: Société1
G5: Service soumission
G7: adresse1
G8: 25500, MORTEAU
G9: Tél : | H9: 101010101
B10: Code client : | D10: C100001
B11: Votre réf Commande/Achat :
B14: Ligne | C14: Référence | D14: Désignation | E14: Qté | F14: Prix U.HT | G14: Montant HT | H14: Délai
H15: demandé | I15: Confirmé
B17: 1 | C17: 25364 | D17: =IF(C17="","",VLOOKUP(C17,Tableau2[],3,FALSE)) -> Polissage fermoir 325 | E17: 320 | F17: =IF(C17="","",VLOOKUP(C17,Tableau2[],4,FALSE)) -> 3.593 | G17: =IF(E17="","",E17*F17) -> 1149.76 | H17: 2024-12-25 | I17: 2024-12-25
B18: 2 | C18: 2152365 | D18: =IF(C18="","",VLOOKUP(C18,Tableau2[],3,FALSE)) -> Avivage fermoir HB | E18: 125 | F18: =IF(C18="","",VLOOKUP(C18,Tableau2[],4,FALSE)) -> 3.99 | G18: =IF(E18="","",E18*F18) -> 498.75 | H18: 2024-12-25 | I18: 2024-12-25
B19: 3 | C19: 1244242 | D19: =IF(C19="","",VLOOKUP(C19,Tableau2[],3,FALSE)) -> Polissage cadran 125 | E19: 210 | F19: =IF(C19="","",VLOOKUP(C19,Tableau2[],4,FALSE)) -> 5.56 | G19: 1167.6 | H19: 2024-12-25 | I19: 2024-12-26
B20: 4 | C20: 1254035 | D20: =IF(C20="","",VLOOKUP(C20,Tableau2[],3,FALSE)) -> Polissage bague HM | E20: 50 | F20: =IF(C20="","",VLOOKUP(C20,Tableau2[],4,FALSE)) -> 3.56 | G20: 178 | H20: 2024-12-28 | I20: 2024-12-28
B21: 5 | C21: 12540344 | D21: =IF(C21="","",VLOOKUP(C21,Tableau2[],3,FALSE)) -> Polissage maillonHM | E21: 40 | F21: =IF(C21="","",VLOOKUP(C21,Tableau2[],4,FALSE)) -> 2.6 | G21: 104 | H21: 2024-12-28 | I21: 2024-12-29
B22: 6 | C22: 477000217 | D22: =IF(C22="","",VLOOKUP(C22,Tableau2[],3,FALSE)) -> Avivage cadran LV | E22: 99 | F22: =IF(C22="","",VLOOKUP(C22,Tableau2[],4,FALSE)) -> 4.89 | G22: 484.11 | H22: 2024-12-28 | I22: 2024-12-29
B23: 7 | D23: =IF(C23="","",VLOOKUP(C23,Tableau2[],3,FALSE)) ->  | F23: =IF(C23="","",VLOOKUP(C23,Tableau2[],4,FALSE)) -> 
B24: 8 | D24: =IF(C24="","",VLOOKUP(C24,Tableau2[],3,FALSE)) ->  | F24: =IF(C24="","",VLOOKUP(C24,Tableau2[],4,FALSE)) -> 
B25: 9 | D25: =IF(C25="","",VLOOKUP(C25,Tableau2[],3,FALSE)) ->  | F25: =IF(C25="","",VLOOKUP(C25,Tableau2[],4,FALSE)) -> 
B26: 10 | D26: =IF(C26="","",VLOOKUP(C26,Tableau2[],3,FALSE)) ->  | F26: =IF(C26="","",VLOOKUP(C26,Tableau2[],4,FALSE)) -> 
B27: 11 | D27: =IF(C27="","",VLOOKUP(C27,Tableau2[],3,FALSE)) ->  | F27: =IF(C27="","",VLOOKUP(C27,Tableau2[],4,FALSE)) -> 
B28: 12 | D28: =IF(C28="","",VLOOKUP(C28,Tableau2[],3,FALSE)) ->  | F28: =IF(C28="","",VLOOKUP(C28,Tableau2[],4,FALSE)) -> 
B29: 13 | D29: =IF(C29="","",VLOOKUP(C29,Tableau2[],3,FALSE)) ->  | F29: =IF(C29="","",VLOOKUP(C29,Tableau2[],4,FALSE)) -> 
B30: 14 | D30: =IF(C30="","",VLOOKUP(C30,Tableau2[],3,FALSE)) ->  | F30: =IF(C30="","",VLOOKUP(C30,Tableau2[],4,FALSE)) -> 
B31: 15 | D31: =IF(C31="","",VLOOKUP(C31,Tableau2[],3,FALSE)) ->  | F31: =IF(C31="","",VLOOKUP(C31,Tableau2[],4,FALSE)) -> 
B32: 16 | D32: =IF(C32="","",VLOOKUP(C32,Tableau2[],3,FALSE)) ->  | F32: =IF(C32="","",VLOOKUP(C32,Tableau2[],4,FALSE)) -> 
B33: 17 | D33: =IF(C33="","",VLOOKUP(C33,Tableau2[],3,FALSE)) ->  | F33: =IF(C33="","",VLOOKUP(C33,Tableau2[],4,FALSE)) -> 
D35: Base TVA | E35: Taux | F35: TVA | H35: NET A PAYER TTC
D36: =SUM(G17:G33) -> 3582.22 | E36: 0.2 | F36: =D36*E36 -> 716.444 | H36: =D36+F36 -> 4298.664
B38: Mode de règlement : | D38: VIREMENT BANCAIRE 30 jours FIN DE MOIS
B40: Commentaires :
B41: Manque 10 pièces ref 25364
B42: Lavage nin inclus prestations
B43: Demande phototèque de qualité

Sheet Archive
A1: N° ARC | B1: Code client | C1: Société | D1: Service | E1: Taux | F1: Référence | G1: Désignation | H1: Qté | I1: Prix U.HT | J1: Montant HT | K1: Délai | M1: 2 | T1: 3 | AA1: 4 | AH1: 5 | AO1: 6 | AV1: 7 | BC1: 8 | BJ1: 9 | BQ1: 10 | BX1: 11 | CE1: 12 | CL1: 13 | CS1: 14 | CZ1: 15 | DG1: 16 | DN1: 17
K2: demandé | L2: Confirmé
A3: AR44testjpp | B3: C100002 | C3: Société2 | D3: Service Achat | E3: 0.2 | F3: 25364 | G3: Polissage fermoir 325 | H3: 320 | I3: 3.593 | J3: 1149.76 | K3: 2024-12-25 | L3: 2024-12-25 | M3: 2152365 | N3: Avivage fermoir HB | O3: 125 | P3: 3.99 | Q3: 498.75 | R3: 2024-12-25 | S3: 2024-12-25 | T3: 1244242 | U3: Polissage cadran 125 | V3: 210 | W3: 5.56 | X3: 1167.6 | Y3: 2024-12-25 | Z3: 2024-12-26 | AA3: 1254035 | AB3: Polissage bague HM | AC3: 50 | AD3: 3.56 | AE3: 178 | AF3: 2024-12-28 | AG3: 2024-12-28 | AH3: 12540344 | AI3: Polissage maillonHM | AJ3: 40 | AK3: 2.6 | AL3: 104 | AM3: 2024-12-28 | AN3: 2024-12-29 | AO3: 477000217 | AP3: Avivage cadran LV | AQ3: 99 | AR3: 4.89 | AS3: 484.11 | AT3: 2024-12-28 | AU3: 2024-12-29

Sheet article
B1: Code article
B4: Ref client | C4: Ref interne | D4: Designation | E4: Prix HT | F4: Pour 1000
B5: 25364 | C5: 10000 | D5: Polissage fermoir 325 | E5: 3.593 | F5: =Tableau2[[#This Row],[Prix HT]]*1000 -> 3593
B6: 2152365 | C6: =C5+1 -> 10001 | D6: Avivage fermoir HB | E6: 3.99 | F6: =Tableau2[[#This Row],[Prix HT]]*1000 -> 3990
B7: 1244242 | C7: =C6+1 -> 10002 | D7: Polissage cadran 125 | E7: 5.56 | F7: =Tableau2[[#This Row],[Prix HT]]*1000 -> 5560
B8: 1254035 | C8: 10003 | D8: Polissage bague HM | E8: 3.56 | F8: =Tableau2[[#This Row],[Prix HT]]*1000 -> 3560
B9: 12540344 | C9: 10004 | D9: Polissage maillonHM | E9: 2.6 | F9: =Tableau2[[#This Row],[Prix HT]]*1000 -> 2600
B10: 477000217 | C10: 10005 | D10: Avivage cadran LV | E10: 4.89 | F10: =Tableau2[[#This Row],[Prix HT]]*1000 -> 4890

Sheet ARCDE (copie)
I1: Accusé de réception de commande
H2: N° | I2: AR426303
G4: Société2
G5: Service comptabilité
G7: adresse3
G8: 25000, BESANCON
G9: Tél : | H9: 303030303
B10: Code client : | D10: C100002
B11: Votre réf Commande/Achat :
B14: Ligne | C14: Référence | D14: Désignation | E14: Qté | F14: Prix U.HT | G14: Montant HT | H14: Délai
H15: demandé | I15: Confirmé
B17: 1 | C17: 25364 | D17: =IF(C17="","",VLOOKUP(C17,Tableau2[],3,FALSE)) -> Polissage fermoir 325 | E17: 320 | F17: =IF(C17="","",VLOOKUP(C17,Tableau2[],4,FALSE)) -> 3.593 | G17: =IF(E17="","",E17*F17) -> 1149.76 | H17: 2024-12-25 | I17: 2024-12-25
B18: 2 | C18: 2152365 | D18: =IF(C18="","",VLOOKUP(C18,Tableau2[],3,FALSE)) -> Avivage fermoir HB | E18: 125 | F18: =IF(C18="","",VLOOKUP(C18,Tableau2[],4,FALSE)) -> 3.99 | G18: =IF(E18="","",E18*F18) -> 498.75 | H18: 2024-12-25 | I18: 2024-12-25
B19: 3 | C19: 1244242 | D19: =IF(C19="","",VLOOKUP(C19,Tableau2[],3,FALSE)) -> Polissage cadran 125 | E19: 210 | F19: =IF(C19="","",VLOOKUP(C19,Tableau2[],4,FALSE)) -> 5.56 | G19: 1167.6 | H19: 2024-12-25 | I19: 2024-12-26
B20: 4 | C20: 1254035 | D20: =IF(C20="","",VLOOKUP(C20,Tableau2[],3,FALSE)) -> Polissage bague HM | E20: 50 | F20: =IF(C20="","",VLOOKUP(C20,Tableau2[],4,FALSE)) -> 3.56 | G20: 178 | H20: 2024-12-28 | I20: 2024-12-28
B21: 5 | C21: 12540344 | D21: =IF(C21="","",VLOOKUP(C21,Tableau2[],3,FALSE)) -> Polissage maillonHM | E21: 40 | F21: =IF(C21="","",VLOOKUP(C21,Tableau2[],4,FALSE)) -> 2.6 | G21: 104 | H21: 2024-12-28 | I21: 2024-12-29
B22: 6 | C22: 477000217 | D22: =IF(C22="","",VLOOKUP(C22,Tableau2[],3,FALSE)) -> Avivage cadran LV | E22: 99 | F22: =IF(C22="","",VLOOKUP(C22,Tableau2[],4,FALSE)) -> 4.89 | G22: 484.11 | H22: 2024-12-28 | I22: 2024-12-29
B23: 7 | D23: =IF(C23="","",VLOOKUP(C23,Tableau2[],3,FALSE)) ->  | F23: =IF(C23="","",VLOOKUP(C23,Tableau2[],4,FALSE)) -> 
B24: 8 | D24: =IF(C24="","",VLOOKUP(C24,Tableau2[],3,FALSE)) ->  | F24: =IF(C24="","",VLOOKUP(C24,Tableau2[],4,FALSE)) -> 
B25: 9 | D25: =IF(C25="","",VLOOKUP(C25,Tableau2[],3,FALSE)) ->  | F25: =IF(C25="","",VLOOKUP(C25,Tableau2[],4,FALSE)) -> 
B26: 10 | D26: =IF(C26="","",VLOOKUP(C26,Tableau2[],3,FALSE)) ->  | F26: =IF(C26="","",VLOOKUP(C26,Tableau2[],4,FALSE)) -> 
B27: 11 | D27: =IF(C27="","",VLOOKUP(C27,Tableau2[],3,FALSE)) ->  | F27: =IF(C27="","",VLOOKUP(C27,Tableau2[],4,FALSE)) -> 
B28: 12 | D28: =IF(C28="","",VLOOKUP(C28,Tableau2[],3,FALSE)) ->  | F28: =IF(C28="","",VLOOKUP(C28,Tableau2[],4,FALSE)) -> 
B29: 13 | D29: =IF(C29="","",VLOOKUP(C29,Tableau2[],3,FALSE)) ->  | F29: =IF(C29="","",VLOOKUP(C29,Tableau2[],4,FALSE)) -> 
B30: 14 | D30: =IF(C30="","",VLOOKUP(C30,Tableau2[],3,FALSE)) ->  | F30: =IF(C30="","",VLOOKUP(C30,Tableau2[],4,FALSE)) -> 
B31: 15 | D31: =IF(C31="","",VLOOKUP(C31,Tableau2[],3,FALSE)) ->  | F31: =IF(C31="","",VLOOKUP(C31,Tableau2[],4,FALSE)) -> 
B32: 16 | D32: =IF(C32="","",VLOOKUP(C32,Tableau2[],3,FALSE)) ->  | F32: =IF(C32="","",VLOOKUP(C32,Tableau2[],4,FALSE)) -> 
B33: 17 | D33: =IF(C33="","",VLOOKUP(C33,Tableau2[],3,FALSE)) ->  | F33: =IF(C33="","",VLOOKUP(C33,Tableau2[],4,FALSE)) -> 
D35: Base TVA | E35: Taux | F35: TVA | H35: NET A PAYER TTC
D36: =SUM(G17:G33) -> 3582.22 | E36: 0.2 | F36: =D36*E36 -> 716.444 | H36: =D36+F36 -> 4298.664
B38: Mode de règlement : | D38: VIREMENT BANCAIRE 30 jours FIN DE MOIS
B40: Commentaires :
B41: Manque 10 pièces ref 25364
B42: Lavage nin inclus prestations
B43: Demande phototèque de qualité
